Workbook

Sheet Sheet1
A1: 韬智科技(无锡)有限公司
A2: 地址：江苏省无锡市新吴区菱湖大道 111-34 号软件园天鹅座 D 栋 301-005 室
A3: 2025年11月份对帐单
A4: To：苏州易泰勒电子科技有限公司
A5: 联系人：张海燕
A6: Tel： Fax： | J6: 1 | K6: 0
A7: 序号 | B7: 下单时间 | C7: 合同编号 | D7: 物料名称 | E7: 规格型号 | F7: 运输单号 | G7: 数量 | H7: 单位 | I7: 含税单价 | J7: 含税金额 | K7: 交货日期 | L7: 出货日期
A8: 1 | B8: 2025-10-23 | C8: CGDD002878 | D8: AP-DZ006 灯条基站 | E8: ETAP05-D1 | F8: 送货上门 | G8: 85 | H8: pcs | I8: 239.2 | J8: =G8*I8 -> 20332 | K8: 2025-11-03 | L8: 2025-11-03
A9: 2 | B9: 2025-10-23 | C9: CGDD002878 | D9: WD1MK0SMD0551 蓝牙模块 | E9: PCBCOMPONENT_1_-_DUPLICATE | F9: 送货上门 | G9: 255 | H9: pcs | I9: 1.1 | J9: =G9*I9 -> 280.5 | K9: 2025-11-03 | L9: 2025-11-03
A10: 3 | B10: 2025-06-20 | C10: CGDD001850 | D10: AP-DZ009 灯条基站 | E10: ETAP05-D1 | F10: 送货上门 | G10: 2 | H10: pcs | I10: 232.61 | J10: =G10*I10 -> 465.22 | K10: 2025-11-03 | L10: 2025-11-03
A11: 4 | B11: 2025-06-20 | C11: CGDD001850 | D11: WD1MK0SMD0551 蓝牙模块 | E11: PCBCOMPONENT_1_-_DUPLICATE | F11: 送货上门 | G11: 6 | H11: pcs | I11: 1.1 | J11: =G11*I11 -> 6.6 | K11: 2025-11-03 | L11: 2025-11-03
A12: 5 | B12: 2025-10-11 | C12: CGDD002717 | D12: AP-DZ009 灯条基站 | E12: ETAP05-D1 | F12: 送货上门 | G12: 500 | H12: pcs | I12: 229.61 | J12: =G12*I12 -> 114805 | K12: 2025-11-03 | L12: 2025-11-03
A13: 6 | B13: 2025-10-11 | C13: CGDD002717 | D13: WD1MK0SMD0551 蓝牙模块 | E13: PCBCOMPONENT_1_-_DUPLICATE | F13: 送货上门 | G13: 1500 | H13: pcs | I13: 1.1 | J13: =G13*I13 -> 1650 | K13: 2025-11-03 | L13: 2025-11-03
A14: 7 | B14: 2025-10-11 | C14: CGDD002717 | D14: AP-DZ006 灯条基站 | E14: ETAP05-D1 | F14: 送货上门 | G14: 155 | H14: pcs | I14: 239.2 | J14: =G14*I14 -> 37076 | K14: 2025-11-03 | L14: 2025-11-03
A15: 8 | B15: 2025-10-11 | C15: CGDD002717 | D15: WD1MK0SMD0551 蓝牙模块 | E15: PCBCOMPONENT_1_-_DUPLICATE | F15: 送货上门 | G15: 465 | H15: pcs | I15: 1.1 | J15: =G15*I15 -> 511.5 | K15: 2025-11-03 | L15: 2025-11-03
A16: 9 | B16: 2025-09-04 | C16: CGDD002430 | D16: AP-DZ009 灯条基站 | E16: ETAP05-D1 | F16: 送货上门 | G16: 460 | H16: pcs | I16: 229.61 | J16: =G16*I16 -> 105620.6 | K16: 2025-11-03 | L16: 2025-11-03
A17: 10 | B17: 2025-09-04 | C17: CGDD002430 | D17: WD1MK0SMD0551 蓝牙模块 | E17: PCBCOMPONENT_1_-_DUPLICATE | F17: 送货上门 | G17: 1380 | H17: pcs | I17: 1.1 | J17: =G17*I17 -> 1518 | K17: 2025-11-03 | L17: 2025-11-03
A18: 11 | B18: 2025-10-23 | C18: CGDD002878 | D18: AP-DZ006 灯条基站 | E18: ETAP05-D1 | F18: 送货上门 | G18: 700 | H18: pcs | I18: 239.2 | J18: =G18*I18 -> 167440 | K18: 2025-11-04 | L18: 2025-11-04
A19: 12 | B19: 2025-10-23 | C19: CGDD002878 | D19: WD1MK0SMD0551 蓝牙模块 | E19: PCBCOMPONENT_1_-_DUPLICATE | F19: 送货上门 | G19: 2100 | H19: pcs | I19: 1.1 | J19: =G19*I19 -> 2310 | K19: 2025-11-04 | L19: 2025-11-04
A20: 13 | B20: 2025-10-23 | C20: CGDD002878 | D20: AP-DZ006 灯条基站 | E20: ETAP05-D1 | F20: 送货上门 | G20: 220 | H20: pcs | I20: 239.2 | J20: =G20*I20 -> 52624 | K20: 2025-11-06 | L20: 2025-11-06
A21: 14 | B21: 2025-10-23 | C21: CGDD002878 | D21: WD1MK0SMD0551 蓝牙模块 | E21: PCBCOMPONENT_1_-_DUPLICATE | F21: 送货上门 | G21: 660 | H21: pcs | I21: 1.1 | J21: =G21*I21 -> 726 | K21: 2025-11-06 | L21: 2025-11-06
A22: 15 | B22: 2025-10-23 | C22: CGDD002878 | D22: AP-DZ006 灯条基站 | E22: ETAP05-D1 | F22: 送货上门 | G22: 20 | H22: pcs | I22: 239.2 | J22: =G22*I22 -> 4784 | K22: 2025-11-06 | L22: 2025-11-06
A23: 16 | B23: 2025-10-23 | C23: CGDD002878 | D23: WD1MK0SMD0551 蓝牙模块 | E23: PCBCOMPONENT_1_-_DUPLICATE | F23: 送货上门 | G23: 60 | H23: pcs | I23: 1.1 | J23: =G23*I23 -> 66 | K23: 2025-11-06 | L23: 2025-11-06
A24: 17 | B24: 2025-10-23 | C24: CGDD002878 | D24: AP-DZ006 灯条基站 | E24: ETAP05-D1 | F24: 送货上门 | G24: 200 | H24: pcs | I24: 239.2 | J24: =G24*I24 -> 47840 | K24: 2025-11-07 | L24: 2025-11-07
A25: 18 | B25: 2025-10-23 | C25: CGDD002878 | D25: WD1MK0SMD0551 蓝牙模块 | E25: PCBCOMPONENT_1_-_DUPLICATE | F25: 送货上门 | G25: 600 | H25: pcs | I25: 1.1 | J25: =G25*I25 -> 660 | K25: 2025-11-07 | L25: 2025-11-07
A26: 19 | B26: 2025-09-04 | C26: CGDD002429 | D26: 基站-5.0 AP-ET010 | E26: ETAP05 | F26: 快递交货 | G26: 40 | H26: pcs | I26: 315.19 | J26: =G26*I26 -> 12607.6 | K26: 2025-11-07 | L26: 2025-11-07
A27: 20 | B27: 2025-09-04 | C27: CGDD002429 | D27: WD1MK0SMD0551 蓝牙模块 | E27: PCBCOMPONENT_1_-_DUPLICATE | F27: 快递交货 | G27: 40 | H27: pcs | I27: 1.3 | J27: =G27*I27 -> 52 | K27: 2025-11-07 | L27: 2025-11-07
A28: 21 | B28: 2025-09-04 | C28: CGDD002429 | D28: WA0000000040 PCBA | E28: CH6121-MODULE-V1.4 | F28: 快递交货 | G28: 200 | H28: pcs | I28: 8.05 | J28: =G28*I28 -> 1610 | K28: 2025-11-07 | L28: 2025-11-07
A29: 22 | B29: 2025-10-23 | C29: CGDD002878 | D29: AP-DZ006 灯条基站 | E29: ETAP05-D1 | F29: 送货上门 | G29: 959 | H29: pcs | I29: 239.2 | J29: =G29*I29 -> 229392.8 | K29: 2025-11-11 | L29: 2025-11-11
A30: 23 | B30: 2025-10-23 | C30: CGDD002878 | D30: WD1MK0SMD0551 蓝牙模块 | E30: PCBCOMPONENT_1_-_DUPLICATE | F30: 送货上门 | G30: 2877 | H30: pcs | I30: 1.1 | J30: =G30*I30 -> 3164.7 | K30: 2025-11-11 | L30: 2025-11-11
A31: 24 | B31: 2025-10-23 | C31: CGDD002878 | D31: AP-DZ006 灯条基站 | E31: ETAP05-D1 | F31: 送货上门 | G31: 1520 | H31: pcs | I31: 239.2 | J31: =G31*I31 -> 363584 | K31: 2025-11-14 | L31: 2025-11-14
A32: 25 | B32: 2025-10-23 | C32: CGDD002878 | D32: WD1MK0SMD0551 蓝牙模块 | E32: PCBCOMPONENT_1_-_DUPLICATE | F32: 送货上门 | G32: 4560 | H32: pcs | I32: 1.1 | J32: =G32*I32 -> 5016 | K32: 2025-11-14 | L32: 2025-11-14
A33: 26 | B33: 2025-10-23 | C33: CGDD002878 | D33: AP-DZ006 灯条基站 | E33: ETAP05-D1 | F33: 送货上门 | G33: 71 | H33: pcs | I33: 239.2 | J33: =G33*I33 -> 16983.2 | K33: 2025-11-18 | L33: 2025-11-18
A34: 27 | B34: 2025-10-23 | C34: CGDD002878 | D34: WD1MK0SMD0551 蓝牙模块 | E34: PCBCOMPONENT_1_-_DUPLICATE | F34: 送货上门 | G34: 213 | H34: pcs | I34: 1.1 | J34: =G34*I34 -> 234.3 | K34: 2025-11-18 | L34: 2025-11-18
A35: 28 | B35: 2025-10-23 | C35: CGDD002878 | D35: AP-DZ006 灯条基站 | E35: ETAP05-D1 | F35: 送货上门 | G35: 96 | H35: pcs | I35: 239.2 | J35: =G35*I35 -> 22963.2 | K35: 2025-11-22 | L35: 2025-11-22
A36: 29 | B36: 2025-10-23 | C36: CGDD002878 | D36: WD1MK0SMD0551 蓝牙模块 | E36: PCBCOMPONENT_1_-_DUPLICATE | F36: 送货上门 | G36: 288 | H36: pcs | I36: 1.1 | J36: =G36*I36 -> 316.8 | K36: 2025-11-22 | L36: 2025-11-22
A37: 30 | B37: 2025-11-21 | C37: CGDD003082 | D37: 飞机盒 | E37: WBC-ZX-00344 | F37: 送货上门 | G37: 200 | H37: pcs | I37: 2 | J37: =G37*I37 -> 400 | K37: 2025-11-22 | L37: 2025-11-22
A38: 31 | B38: 2025-09-04 | C38: CGDD002429 | D38: 基站-5.0 AP-ET010 | E38: ETAP05 | F38: 快递交货 | G38: 580 | H38: pcs | I38: 315.19 | J38: =G38*I38 -> 182810.2 | K38: 2025-11-24 | L38: 2025-11-24
A39: 32 | B39: 2025-09-04 | C39: CGDD002429 | D39: WD1MK0SMD0551 蓝牙模块 | E39: PCBCOMPONENT_1_-_DUPLICATE | F39: 快递交货 | G39: 580 | H39: pcs | I39: 1.3 | J39: =G39*I39 -> 754 | K39: 2025-11-24 | L39: 2025-11-24
A40: 33 | B40: 2025-09-04 | C40: CGDD002429 | D40: WA0000000040 PCBA | E40: CH6121-MODULE-V1.4 | F40: 快递交货 | G40: 2900 | H40: pcs | I40: 8.05 | J40: =G40*I40 -> 23345 | K40: 2025-11-24 | L40: 2025-11-24
C41: 初期付款金额： | D41: 0.00 | E41: 本月收款金额： | F41: 0.00
E42: 合计金额： | F42: =SUM(J8:J41) -> 1,421,949.22
E43: 大写合计RMB： | F43: =F42 -> 1421949.22
E44: 累计应付总额： | F44: =(F41-D43+F43) -> 1,421,949.22
A47: 付款条件：货到付款 是否含税：含税,增值税专用发票 13%
A48: 请在五天之内确认并回传，否则视为确认该对帐单正确。贵司选择付款时请备注好公司名称及时通知我司，方便核对。 顺祝商祺！
A49: 货款支付方式：1、转入我司账户或指定账户；2、票据支付请填写我司为收款人；3、如我司委托收款，请审查委托书、身份证、加盖我司财务章收据。
G50: 对账人：徐晓莹 | K50: 2025/11/26
